fUSD/lending_fUSD_20240802
["ID","MTS","AMOUNT","RATE_DAILY","PERIOD"]
[333917298,1722629443068,-500.0,0.00016438,2]
[333917300,1722629443077,-1149.68,0.00016438,2]
[333917302,1722629443086,-500.0,0.00016438,2]
[333917304,1722629443096,-1100.83,0.00016438,2]
[333917306,1722629443106,-382.39762793,0.00016438,2]
[333917307,1722629443115,-500.0,0.00016438,2]
[333917308,1722629443127,-500.0,0.00016438,2]
[333917309,1722629443137,-735.71,0.00016438,2]
[333917310,1722629443147,-500.0,0.00016438,2]
[333917312,1722629443157,-500.0,0.00016438,2]
[333917313,1722629443167,-872.55,0.00016438,2]
[333917314,1722629443176,-500.0,0.00016438,2]
[333917315,1722629443186,-500.0,0.00016438,2]
[333917316,1722629443197,-940.88,0.00016438,2]
[333917317,1722629443207,-1030.74,0.00016438,2]
[333917318,1722629443216,-500.0,0.00016438,2]
[333917319,1722629443225,-647.45,0.00016438,2]
[333917320,1722629443235,-766.87,0.00016438,2]
[333917321,1722629443244,-677.21,0.00016438,2]
[333917322,1722629443254,-500.0,0.00016438,2]
[333917323,1722629443263,-500.0,0.00016438,2]
[333917324,1722629443272,-1021.01,0.00016438,2]
[333917325,1722629443281,-500.0,0.00016438,2]
[333917326,1722629443291,-500.0,0.00016438,2]
[333917327,1722629443301,-500.0,0.00016438,2]
[333917328,1722629443310,-953.09,0.00016438,2]
[333917329,1722629443319,-791.87,0.00016438,2]
[333917330,1722629443329,-500.0,0.00016438,2]
[333917331,1722629443339,-922.69,0.00016438,2]
[333917332,1722629443348,-1307.45,0.00016438,2]
[333917333,1722629443358,-932.82,0.00016438,2]
[333917334,1722629443369,-510.18,0.00016438,2]
[333917335,1722629443378,-500.0,0.00016438,2]
[333917336,1722629443388,-500.0,0.00016438,2]
[333917337,1722629443397,-773.47,0.00016438,2]
[333917338,1722629443406,-1915.48,0.00016438,2]
[333917339,1722629443417,-500.0,0.00016438,2]
[333917340,1722629443428,-500.0,0.00016438,2]
[333917341,1722629443441,-500.0,0.00016438,2]
[333917342,1722629443451,-799.5,0.00016438,2]
[333917343,1722629443463,-1532.95,0.00016438,2]
[333917344,1722629443473,-500.0,0.00016438,2]
[333917345,1722629443483,-1038.01,0.00016438,2]
[333917346,1722629443493,-500.0,0.00016438,2]
[333917347,1722629443502,-500.0,0.00016438,2]
[333917348,1722629443513,-500.0,0.00016438,2]
[333917349,1722629443523,-339.86975353,0.00016438,2]
[333917350,1722629443532,-500.0,0.00016438,2]
[333917351,1722629443543,-500.0,0.00016438,2]
[333917352,1722629443553,-500.0,0.00016438,2]
[333917354,1722629443562,-884.68,0.00016438,2]
[333917356,1722629443572,-307.63219401,0.00016438,2]
[333917358,1722629443581,-500.0,0.00016438,2]
[333917360,1722629443591,-1095.56,0.00016438,2]
[333917362,1722629443600,-500.0,0.00016438,2]
[333917363,1722629443611,-694.74,0.00016438,2]
[333917364,1722629443621,-1423.02,0.00016438,2]
[333917365,1722629443633,-500.0,0.00016438,2]
[333917366,1722629443643,-1599.86,0.00016438,2]
[333917367,1722629443654,-1343.81,0.00016438,2]
[333917368,1722629443663,-500.0,0.00016438,2]
[333917369,1722629443672,-500.0,0.00016438,2]
[333917370,1722629443681,-353.53173767,0.00016438,2]
[333917371,1722629443692,-755.04,0.00016438,2]
[333917372,1722629443702,-500.0,0.00016438,2]
[333917373,1722629443712,-500.0,0.00016438,2]
[333917374,1722629443722,-952.84,0.00016438,2]
[333917375,1722629443823,-500.0,0.00016438,2]
[333917376,1722629443832,-631.31,0.00016438,2]
[333917377,1722629443842,-500.0,0.00016438,2]
[333917378,1722629443851,-500.0,0.00016438,2]
[333917379,1722629443861,-500.0,0.00016438,2]
[333917380,1722629443870,-508.33,0.00016438,2]
[333917381,1722629443881,-500.0,0.00016438,2]
[333917382,1722629443891,-500.0,0.00016438,2]
[333917383,1722629443901,-743.41,0.00016438,2]
[333917384,1722629443910,-564.87,0.00016438,2]
[333917385,1722629443920,-500.0,0.00016438,2]
[333917386,1722629443932,-1263.45,0.00016438,2]
[333917387,1722629443942,-2800.62,0.00016438,2]
[333917388,1722629443951,-500.0,0.00016438,2]
[333917389,1722629443962,-500.0,0.00016438,2]
[333917390,1722629443971,-500.0,0.00016438,2]
[333917391,1722629443981,-500.0,0.00016438,2]
[333917392,1722629443990,-793.41,0.00016438,2]
[333917393,1722629443999,-500.0,0.00016438,2]
[333917394,1722629444008,-2800.37,0.00016438,2]
[333917395,1722629444017,-500.0,0.00016438,2]
[333917396,1722629444026,-500.0,0.00016438,2]
[333917397,1722629444036,-645.11,0.00016438,2]
[333917398,1722629444045,-1021.87,0.00016438,2]
[333917399,1722629444054,-1192.69,0.00016438,2]
[333917400,1722629444063,-500.0,0.00016438,2]
[333917401,1722629444072,-500.0,0.00016438,2]
[333917402,1722629444081,-509.15,0.00016438,2]
[333917403,1722629444090,-1008.84,0.00016438,2]
[333917404,1722629444099,-500.0,0.00016438,2]
[333917405,1722629444108,-500.0,0.00016438,2]
[333917406,1722629444118,-1304.46,0.00016438,2]
[333917407,1722629444127,-500.0,0.00016438,2]
[333917408,1722629444136,-718.31,0.00016438,2]
[333917409,1722629444145,-584.07,0.00016438,2]
[333917410,1722629444154,-500.0,0.00016438,2]
[333917411,1722629444163,-500.0,0.00016438,2]
[333917412,1722629444173,-650.0,0.00016438,2]
[333917413,1722629444181,-684.24,0.00016438,2]
[333917414,1722629444192,-500.0,0.00016438,2]
[333917415,1722629444201,-500.0,0.00016438,2]
[333917416,1722629444211,-2988.17,0.00016438,2]
[333917417,1722629444221,-593.24,0.00016438,2]
[333917418,1722629444230,-500.0,0.00016438,2]
[333917419,1722629444239,-500.0,0.00016438,2]
[333917420,1722629444249,-500.0,0.00016438,2]
[333917421,1722629444258,-500.0,0.00016438,2]
[333917422,1722629444267,-655.04,0.00016438,2]
[333917423,1722629444276,-597.27,0.00016438,2]
[333917424,1722629444286,-2172.51,0.00016438,2]
[333917425,1722629444295,-500.0,0.00016438,2]
[333917426,1722629444304,-500.0,0.00016438,2]
[333917427,1722629444314,-500.0,0.00016438,2]
[333917428,1722629444323,-500.0,0.00016438,2]
[333917429,1722629444332,-500.0,0.00016438,2]
[333917430,1722629444342,-2426.67,0.00016438,2]
[333917431,1722629444351,-500.0,0.00016438,2]
[333917432,1722629444360,-1007.56,0.00016438,2]
[333917433,1722629444369,-500.0,0.00016438,2]
[333917434,1722629444378,-1119.74,0.00016438,2]
[333917435,1722629444387,-500.0,0.00016438,2]
[333917436,1722629444397,-500.0,0.00016438,2]
[333917437,1722629444406,-500.0,0.00016438,2]
[333917438,1722629444415,-500.0,0.00016438,2]
[333917439,1722629444424,-500.0,0.00016438,2]
[333917440,1722629444433,-500.0,0.00016438,2]
[333917441,1722629444445,-500.0,0.00016438,2]
[333917442,1722629444455,-547.39,0.00016438,2]
[333917443,1722629444464,-500.0,0.00016438,2]
[333917444,1722629444473,-2344.24,0.00016438,2]
[333917445,1722629444483,-500.0,0.00016438,2]
[333917446,1722629444492,-500.0,0.00016438,2]
[333917447,1722629444501,-1007.6,0.00016438,2]
[333917448,1722629444510,-901.36,0.00016438,2]
[333917449,1722629444520,-500.0,0.00016438,2]
[333917450,1722629444529,-500.0,0.00016438,2]
[333917451,1722629444538,-1077.18,0.00016438,2]
[333917452,1722629444547,-1681.47,0.00016438,2]
[333917453,1722629444557,-990.65,0.00016438,2]
[333917454,1722629444567,-500.0,0.00016438,2]
[333917455,1722629444576,-1005.11,0.00016438,2]
[333917456,1722629444585,-500.0,0.00016438,2]
[333917457,1722629444594,-1932.05,0.00016438,2]
[333917458,1722629444603,-1560.88,0.00016438,2]
[333917459,1722629444612,-3659.81,0.00016438,2]
[333917460,1722629444621,-1045.7,0.00016438,2]
[333917461,1722629444631,-1225.43,0.00016438,2]
[333917462,1722629444640,-506.45,0.00016438,2]
[333917463,1722629444649,-500.0,0.00016438,2]
[333917464,1722629444659,-500.0,0.00016438,2]
[333917465,1722629444668,-500.0,0.00016438,2]
[333917466,1722629444678,-571.02,0.00016438,2]
[333917467,1722629444688,-961.68,0.00016438,2]
[333917468,1722629444698,-913.11,0.00016438,2]
[333917469,1722629444707,-776.08,0.00016438,2]
[333917470,1722629444717,-651.2,0.00016438,2]
[333917471,1722629444727,-500.0,0.00016438,2]
[333917472,1722629444736,-526.67212106,0.00016438,2]
[333917473,1722629444745,-631.55,0.00016438,2]
[333917474,1722629444755,-500.0,0.00016438,2]
[333917475,1722629444764,-500.0,0.00016438,2]
[333917476,1722629444773,-500.0,0.00016438,2]
[333917477,1722629444782,-805.41,0.00016438,2]
[333917478,1722629444792,-500.0,0.00016438,2]
[333917479,1722629444801,-2362.95,0.00016438,2]
[333917480,1722629444810,-500.0,0.00016438,2]
[333917481,1722629444820,-1360.73,0.00016438,2]
[333917482,1722629444829,-717.77,0.00016438,2]
[333917483,1722629444838,-500.0,0.00016438,2]
[333917484,1722629444848,-583.6,0.00016438,2]
[333917485,1722629444858,-694.97,0.00016438,2]
[333917486,1722629444867,-1156.38,0.00016438,2]
[333917487,1722629444877,-500.0,0.00016438,2]
[333917488,1722629444890,-500.0,0.00016438,2]
[333917490,1722629444899,-500.0,0.00016438,2]
[333917492,1722629444908,-500.0,0.00016438,2]
[333917493,1722629444918,-500.0,0.00016438,2]
[333917495,1722629444928,-500.0,0.00016438,2]
[333917497,1722629444938,-1829.62,0.00016438,2]
[333917499,1722629444947,-500.0,0.00016438,2]
[333917501,1722629444959,-3755.4,0.00016438,2]
[333917503,1722629444968,-1065.4,0.00016438,2]
[333917505,1722629444977,-561.51991756,0.00016438,2]
[333917507,1722629444986,-1037.76,0.00016438,2]
[333917509,1722629444995,-1482.81,0.00016438,2]
[333917511,1722629445005,-2183.29,0.00016438,2]
[333917512,1722629445014,-760.09,0.00016438,2]
[333917514,1722629445023,-1493.81,0.00016438,2]
[333917516,1722629445033,-567.96,0.00016438,2]
[333917518,1722629445042,-555.6,0.00016438,2]
[333917520,1722629445051,-500.0,0.00016438,2]
[333917522,1722629445061,-500.0,0.00016438,2]
[333917524,1722629445071,-1366.61,0.00016438,2]
[333917526,1722629445080,-500.0,0.00016438,2]
[333917528,1722629445089,-500.0,0.00016438,2]
[333917530,1722629445099,-588.33,0.00016438,2]
[333917532,1722629445107,-673.78,0.00016438,2]
[333917534,1722629445116,-631.51,0.00016438,2]
[333917536,1722629445125,-500.0,0.00016438,2]
[333917538,1722629445134,-500.0,0.00016438,2]
[333917539,1722629445143,-500.0,0.00016438,2]
[333917540,1722629445153,-500.0,0.00016438,2]
[333917541,1722629445162,-836.07,0.00016438,2]
[333917542,1722629445171,-827.13,0.00016438,2]
[333917543,1722629445180,-500.0,0.00016438,2]
[333917544,1722629445195,-1855.27,0.00016438,2]
[333917545,1722629445204,-1597.26,0.00016438,2]
[333917546,1722629445213,-500.0,0.00016438,2]
[333917548,1722629445222,-1592.46,0.00016438,2]
[333917550,1722629445231,-1088.25,0.00016438,2]
[333917552,1722629445240,-500.0,0.00016438,2]
[333917554,1722629445249,-1104.34,0.00016438,2]
[333917556,1722629445258,-500.0,0.00016438,2]
[333917557,1722629445267,-500.0,0.00016438,2]
[333917559,1722629445276,-500.0,0.00016438,2]
[333917561,1722629445286,-801.88,0.00016438,2]
[333917563,1722629445295,-2051.58,0.00016438,2]
[333917565,1722629445304,-500.0,0.00016438,2]
[333917567,1722629445313,-1734.5,0.00016438,2]
[333917569,1722629445323,-2870.78,0.00016438,2]
[333917570,1722629445333,-2443.2,0.00016438,2]
[333917571,1722629445342,-500.0,0.00016438,2]
[333917572,1722629445352,-500.0,0.00016438,2]
[333917573,1722629445361,-500.0,0.00016438,2]
[333917574,1722629445370,-500.0,0.00016438,2]
[333917575,1722629445380,-1405.21,0.00016438,2]
[333917576,1722629445390,-500.0,0.00016438,2]
[333917577,1722629445399,-1966.84,0.00016438,2]
[333917578,1722629445409,-500.0,0.00016438,2]
[333917579,1722629445419,-500.0,0.00016438,2]
[333917580,1722629445428,-500.0,0.00016438,2]
[333917581,1722629445438,-500.0,0.00016438,2]
[333917582,1722629445447,-500.0,0.00016438,2]
[333917583,1722629445456,-551.15,0.00016438,2]
[333917584,1722629445465,-1436.51,0.00016438,2]
[333917586,1722629445474,-2569.15,0.00016438,2]
[333917587,1722629445483,-2430.56,0.00016438,2]
[333917588,1722629445493,-500.0,0.00016438,2]
[333917589,1722629445502,-500.0,0.00016438,2]
[333917590,1722629445511,-289.87711396,0.00016438,2]
[333917591,1722629445520,-631.67,0.00016438,2]
[333917592,1722629445530,-500.0,0.00016438,2]
[333917593,1722629445539,-500.0,0.00016438,2]
[333917594,1722629445548,-730.33,0.00016438,2]
[333917595,1722629445557,-500.0,0.00016438,2]
[333917596,1722629445566,-500.0,0.00016438,2]
[333917597,1722629445576,-500.0,0.00016438,2]
[333917598,1722629445585,-500.0,0.00016438,2]
[333917600,1722629445594,-1315.62,0.00016438,2]
[333917602,1722629445603,-667.44,0.00016438,2]
[333917604,1722629445612,-500.0,0.00016438,2]
[333917606,1722629445622,-500.0,0.00016438,2]
[333917608,1722629445631,-509.46,0.00016438,2]
[333917610,1722629445641,-500.0,0.00016438,2]
[333917612,1722629445650,-500.0,0.00016438,2]
[333917614,1722629445659,-1233.72,0.00016438,2]
[333917616,1722629445668,-500.0,0.00016438,2]
[333917618,1722629445678,-1687.45,0.00016438,2]
[333917620,1722629445687,-500.0,0.00016438,2]
[333917622,1722629445696,-1979.44,0.00016438,2]
[333917624,1722629445705,-1602.6,0.00016438,2]
[333917626,1722629445715,-1885.71,0.00016438,2]
[333917628,1722629445725,-550.25,0.00016438,2]
[333917630,1722629445735,-1000.71,0.00016438,2]
[333917632,1722629445745,-540.3,0.00016438,2]
[333917634,1722629445755,-1568.07,0.00016438,2]
[333917636,1722629445765,-500.0,0.00016438,2]
[333917638,1722629445774,-591.1,0.00016438,2]
[333917640,1722629445784,-537.7055495,0.00016438,2]
[333917642,1722629445794,-500.0,0.00016438,2]
[333917644,1722629445803,-500.0,0.00016438,2]
[333917646,1722629445813,-500.0,0.00016438,2]
[333917648,1722629445823,-500.0,0.00016438,2]
[333917650,1722629445834,-846.79,0.00016438,2]
[333917654,1722629445844,-500.0,0.00016438,2]
[333917657,1722629445853,-1526.83,0.00016438,2]
[333917660,1722629445863,-699.0,0.00016438,2]
[333917663,1722629445873,-2105.12010974,0.00016438,2]
[333917793,1722629447189,-150.0,0.0001642,2]
[333917795,1722629447200,-150.0,0.00016425,2]
[333917797,1722629447209,-825.01451145,0.00016433,2]
[333917799,1722629447221,-1099.77256095,0.00016433,2]
[333917801,1722629447231,-118.90989026,0.00016438,2]
[333917803,1722629447241,-500.0,0.00016438,2]
[333917805,1722629447251,-533.07,0.00016438,2]
[333917807,1722629447261,-1054.85,0.00016438,2]
[333917809,1722629447270,-500.0,0.00016438,2]
[333917811,1722629447280,-500.0,0.00016438,2]
[333917813,1722629447290,-500.0,0.00016438,2]
[333917815,1722629447299,-977.76,0.00016438,2]
[333917817,1722629447308,-2034.68,0.00016438,2]
[333917819,1722629447319,-500.0,0.00016438,2]
[333917821,1722629447328,-500.0,0.00016438,2]
[333917823,1722629447337,-500.0,0.00016438,2]
[333917825,1722629447346,-543.26,0.00016438,2]
[333917827,1722629447356,-1814.92,0.00016438,2]
[333917828,1722629447365,-500.0,0.00016438,2]
[333917830,1722629447374,-1038.96625609,0.00016438,2]
[333917835,1722629447406,-1638.82678995,0.00016438,2]
[333917837,1722629447418,-879.08695396,0.00016438,2]
[333917839,1722629447428,-2867.12,0.00016438,2]
[333917841,1722629447437,-500.0,0.00016438,2]
[333917843,1722629447447,-587.04,0.00016438,2]
[333917845,1722629447457,-1660.21,0.00016438,2]
[333917847,1722629447466,-192.92736818,0.00016438,2]
[333917849,1722629447479,-428.39906294,0.00016438,2]
[333917852,1722629447499,-2288.99356888,0.00016438,2]
[333917854,1722629447509,-1532.97,0.00016438,2]
[333917856,1722629447519,-591.4,0.00016438,2]
[333917858,1722629447529,-500.0,0.00016438,2]
[333917860,1722629447538,-500.0,0.00016438,2]
[333917861,1722629447548,-1410.1,0.00016438,2]
[333917863,1722629447558,-500.0,0.00016438,2]
[333917865,1722629447568,-500.0,0.00016438,2]
[333917867,1722629447578,-500.0,0.00016438,2]
[333917869,1722629447587,-1189.15,0.00016438,2]
[333917871,1722629447598,-500.0,0.00016438,2]
[333917873,1722629447608,-1867.01,0.00016438,2]
[333917875,1722629447617,-500.0,0.00016438,2]
[333917877,1722629447628,-1203.98,0.00016438,2]
[333917879,1722629447638,-3062.87,0.00016438,2]
[333917881,1722629447648,-1000.0,0.00016438,2]
[333917883,1722629447658,-1386.25,0.00016438,2]
[333917885,1722629447668,-500.0,0.00016438,2]
[333917887,1722629447678,-2165.63,0.00016438,2]
[333917889,1722629447689,-500.0,0.00016438,2]
[333917891,1722629447699,-710.03,0.00016438,2]
[333917896,1722629447860,-1070.67,0.00016438,2]
[333917897,1722629447871,-500.0,0.00016438,2]
[333917898,1722629447883,-500.0,0.00016438,2]
[333917899,1722629447893,-500.0,0.00016438,2]
[333917900,1722629447903,-1048.74,0.00016438,2]
[333917901,1722629447913,-500.0,0.00016438,2]
[333917902,1722629447923,-1050.22,0.00016438,2]
[333917903,1722629447933,-703.94,0.00016438,2]
[333917904,1722629447945,-500.0,0.00016438,2]
[333917905,1722629447955,-500.0,0.00016438,2]
[333917906,1722629447965,-1249.21,0.00016438,2]
[333917907,1722629447976,-1009.71,0.00016438,2]
[333917909,1722629447986,-635.45,0.00016438,2]
[333917910,1722629447995,-1119.79,0.00016438,2]
[333917911,1722629448005,-824.02,0.00016438,2]
[333917912,1722629448014,-506.79,0.00016438,2]
[333917913,1722629448025,-500.0,0.00016438,2]
[333917915,1722629448035,-500.0,0.00016438,2]
[333917917,1722629448045,-1532.09,0.00016438,2]
[333917919,1722629448055,-960.98,0.00016438,2]
[333917921,1722629448065,-500.0,0.00016438,2]
[333917923,1722629448075,-1127.54,0.00016438,2]
[333917926,1722629448086,-797.75,0.00016438,2]
[333917928,1722629448096,-500.0,0.00016438,2]
[333917930,1722629448106,-793.34,0.00016438,2]
[333917932,1722629448116,-1901.43,0.00016438,2]
[333917933,1722629448126,-1362.56,0.00016438,2]
[333917935,1722629448136,-1117.92,0.00016438,2]
[333917937,1722629448148,-500.0,0.00016438,2]
[333917940,1722629448158,-500.0,0.00016438,2]
[333917942,1722629448168,-1224.25,0.00016438,2]
[333917944,1722629448179,-500.0,0.00016438,2]
[333917946,1722629448192,-500.0,0.00016438,2]
[333917948,1722629448203,-1661.24,0.00016438,2]
[333917950,1722629448213,-2716.7,0.00016438,2]
[333917952,1722629448222,-500.0,0.00016438,2]
[333917954,1722629448232,-2083.1,0.00016438,2]
[333917956,1722629448242,-574.58,0.00016438,2]
[333917958,1722629448252,-1308.42,0.00016438,2]
[333917960,1722629448262,-500.0,0.00016438,2]
[333917962,1722629448272,-500.0,0.00016438,2]
[333917964,1722629448281,-630.98,0.00016438,2]
[333917966,1722629448291,-500.0,0.00016438,2]
[333917968,1722629448301,-500.0,0.00016438,2]
[333917969,1722629448311,-2440.05,0.00016438,2]
[333917971,1722629448320,-1588.90614113,0.00016438,2]
[333917983,1722629451196,-361.76385887,0.00016438,2]
[333917984,1722629451206,-242.64131599,0.00016438,2]
[333917985,1722629451273,-257.35868401,0.00016438,2]
[333917986,1722629451282,-1388.83,0.00016438,2]
[333917987,1722629451292,-76.11134695,0.00016438,2]
[333917988,1722629451303,-423.88865305,0.00016438,2]
[333917989,1722629451312,-500.0,0.00016438,2]
[333917990,1722629451321,-500.0,0.00016438,2]
[333917991,1722629451330,-500.0,0.00016438,2]
[333917992,1722629451339,-500.0,0.00016438,2]
[333917993,1722629451349,-596.61134695,0.00016438,2]
[333917994,1722629451413,-525.29865305,0.00016438,2]
[333917995,1722629451423,-1182.58373472,0.00016438,2]
[333917996,1722629451436,-546.09626528,0.00016438,2]
[333917997,1722629451447,-281.78214558,0.00016438,2]
[333917998,1722629451458,-1311.32785442,0.00016438,2]
[333917999,1722629451468,-954.16,0.00016438,2]
[333918000,1722629451477,-1716.39,0.00016438,2]
[333918001,1722629451486,-2223.1,0.00016438,2]
[333918002,1722629451495,-555.04,0.00016438,2]
[333918003,1722629451504,-500.0,0.00016438,2]
[333918004,1722629451513,-984.27,0.00016438,2]
[333918005,1722629451523,-1771.22,0.00016438,2]
[333918006,1722629451532,-2386.31,0.00016438,2]
[333918007,1722629451541,-500.0,0.00016438,2]
[333918008,1722629451551,-925.72,0.00016438,2]
[333918009,1722629451561,-973.08,0.00016438,2]
[333918010,1722629451570,-500.0,0.00016438,2]
[333918011,1722629451581,-786.43,0.00016438,2]
[333918012,1722629451592,-500.0,0.00016438,2]
[333918013,1722629451601,-1621.77,0.00016438,2]
[333918014,1722629451612,-1483.83,0.00016438,2]
[333918015,1722629451622,-608.85,0.00016438,2]
[333918016,1722629451631,-2692.0,0.00016438,2]
[333918017,1722629451641,-1848.18,0.00016438,2]
[333918018,1722629451651,-634.65,0.00016438,2]
[333918019,1722629451661,-500.0,0.00016438,2]
[333918020,1722629451670,-570.4,0.00016438,2]
[333918021,1722629451681,-545.77,0.00016438,2]
[333918022,1722629451691,-1981.16,0.00016438,2]
[333918023,1722629451701,-631.23,0.00016438,2]
[333918024,1722629451710,-500.0,0.00016438,2]
[333918025,1722629451720,-1114.76,0.00016438,2]
[333918026,1722629451730,-500.0,0.00016438,2]
[333918027,1722629451740,-500.0,0.00016438,2]
[333918028,1722629451750,-500.0,0.00016438,2]
[333918029,1722629451759,-1542.28,0.00016438,2]
[333918030,1722629451769,-983.08,0.00016438,2]
[333918031,1722629451779,-956.35,0.00016438,2]
[333918032,1722629451788,-531.23,0.00016438,2]
[333918033,1722629451798,-2398.76,0.00016438,2]
[333918034,1722629451807,-1099.22,0.00016438,2]
[333918035,1722629451817,-500.0,0.00016438,2]
[333918036,1722629451827,-500.0,0.00016438,2]
[333918037,1722629451836,-500.0,0.00016438,2]
[333918038,1722629451846,-859.1,0.00016438,2]
[333918039,1722629451856,-500.0,0.00016438,2]
[333918040,1722629451867,-500.0,0.00016438,2]
[333918041,1722629451879,-500.0,0.00016438,2]
[333918042,1722629451891,-500.0,0.00016438,2]
[333918043,1722629451900,-500.0,0.00016438,2]
[333918044,1722629451910,-2253.38,0.00016438,2]
[333918045,1722629451919,-3321.75,0.00016438,2]
[333918046,1722629451929,-500.0,0.00016438,2]
[333918047,1722629451938,-1704.6,0.00016438,2]
[333918048,1722629451948,-500.0,0.00016438,2]
[333918049,1722629451958,-2025.56,0.00016438,2]
[333918050,1722629451967,-500.0,0.00016438,2]
[333918051,1722629451977,-527.75,0.00016438,2]
[333918052,1722629451986,-1732.01,0.00016438,2]
[333918053,1722629451996,-1674.81,0.00016438,2]
[333918054,1722629452006,-704.28,0.00016438,2]
[333918055,1722629452015,-2494.48,0.00016438,2]
[333918056,1722629452025,-506.95,0.00016438,2]
[333918057,1722629452034,-1463.7,0.00016438,2]
[333918058,1722629452044,-1225.18,0.00016438,2]
[333918059,1722629452053,-502.5,0.00016438,2]
[333918060,1722629452062,-2562.18,0.00016438,2]
[333918061,1722629452072,-1333.63,0.00016438,2]
[333918062,1722629452081,-716.55,0.00016438,2]
[333918063,1722629452089,-500.0,0.00016438,2]
[333918064,1722629452098,-500.0,0.00016438,2]
[333918065,1722629452108,-916.89,0.00016438,2]
[333918066,1722629452117,-1606.68,0.00016438,2]
[333918067,1722629452231,-2843.58,0.00016438,2]
[333918068,1722629452240,-1532.41,0.00016438,2]
[333918069,1722629452249,-500.0,0.00016438,2]
[333918070,1722629452258,-1658.69,0.00016438,2]
[333918071,1722629452267,-500.0,0.00016438,2]
[333918072,1722629452278,-568.35,0.00016438,2]
[333918073,1722629452288,-613.77,0.00016438,2]
[333918074,1722629452297,-500.0,0.00016438,2]
[333918075,1722629452308,-2016.17,0.00016438,2]
[333918076,1722629452319,-2294.61,0.00016438,2]
[333918077,1722629452328,-500.0,0.00016438,2]
[333918078,1722629452338,-749.89,0.00016438,2]
[333918079,1722629452349,-500.0,0.00016438,2]
[333918080,1722629452358,-500.0,0.00016438,2]
[333918081,1722629452368,-500.0,0.00016438,2]
[333918082,1722629452377,-500.0,0.00016438,2]
[333918083,1722629452387,-500.0,0.00016438,2]
[333918084,1722629452396,-500.0,0.00016438,2]
[333918085,1722629452405,-2054.64,0.00016438,2]
[333918086,1722629452414,-647.0,0.00016438,2]
[333918087,1722629452423,-870.81,0.00016438,2]
[333918088,1722629452433,-585.25,0.00016438,2]
[333918089,1722629452444,-500.0,0.00016438,2]
[333918090,1722629452454,-694.99,0.00016438,2]
[333918091,1722629452464,-500.0,0.00016438,2]
[333918092,1722629452474,-1531.84,0.00016438,2]
[333918093,1722629452484,-500.0,0.00016438,2]
[333918094,1722629452493,-868.39,0.00016438,2]
[333918095,1722629452502,-500.0,0.00016438,2]
[333918096,1722629452511,-527.75,0.00016438,2]
[333918097,1722629452520,-713.81,0.00016438,2]
[333918098,1722629452529,-2603.03,0.00016438,2]
[333918099,1722629452538,-713.98,0.00016438,2]
[333918100,1722629452547,-1331.64,0.00016438,2]
[333918101,1722629452556,-500.0,0.00016438,2]
[333918102,1722629452565,-500.0,0.00016438,2]